bitfinex/quotes_BTCUSD_20260101
["timestamp","ask_amount","ask_price","bid_price","bid_amount"]
[1767293512686,0.03513435,88245.0,88234.0,0.02269349]
[1767293512889,0.03513435,88244.0,88235.0,0.01133337]
[1767293513212,0.02450046,88243.0,88235.0,0.01133337]
[1767293513394,0.04920289,88246.0,88234.0,0.02269349]
[1767293513609,0.03513465,88245.0,88235.0,0.01133337]
[1767293513746,0.03513465,88244.0,88235.0,0.01133337]
[1767293513948,0.02450067,88243.0,88235.0,0.01133337]
[1767293514175,0.04920289,88246.0,88235.0,0.01133337]
[1767293514375,0.03513355,88245.0,88235.0,0.01133337]
[1767293514605,0.03513355,88244.0,88235.0,0.01133337]
[1767293514808,0.02449982,88243.0,88235.0,0.01133337]
[1767293515006,0.04920289,88246.0,88235.0,0.01133337]
[1767293515215,0.04920289,88246.0,88236.0,0.01133324]
[1767293515216,0.03513313,88245.0,88236.0,0.01133324]
[1767293515495,0.03513313,88244.0,88235.0,0.01133337]
[1767293515707,0.02449961,88243.0,88236.0,0.01133324]
[1767293515920,0.04920289,88246.0,88236.0,0.01133324]
[1767293516133,0.04920289,88246.0,88235.0,0.01133337]
[1767293516134,0.03513366,88245.0,88235.0,0.01133337]
[1767293516317,0.03513366,88244.0,88235.0,0.01133337]
[1767293516513,0.02449998,88243.0,88235.0,0.01133337]
[1767293516717,0.04920289,88246.0,88236.0,0.01133324]
[1767293516933,0.03513418,88245.0,88236.0,0.01133324]
[1767293517141,0.03513418,88244.0,88236.0,0.01133324]
[1767293517345,0.02450034,88243.0,88236.0,0.01133324]
[1767293517668,0.04920289,88246.0,88236.0,0.01133324]
[1767293517897,0.03513492,88245.0,88234.0,0.02269349]
[1767293518108,0.03513492,88244.0,88234.0,0.02269349]
[1767293518359,0.02450086,88243.0,88235.0,0.01133337]
[1767293518573,0.02450086,88245.0,88235.0,0.01133337]
[1767293518720,0.03513524,88244.0,88235.0,0.01133337]
[1767293518916,0.02450086,88243.0,88234.0,0.02269349]
[1767293519102,0.02450086,88242.0,88234.0,0.01136]
[1767293519315,0.04920289,88246.0,88234.0,0.010811]
[1767293519537,0.04830784,88244.0,88234.0,0.00093342]
[1767293519738,0.04830784,88242.0,88234.0,0.00093342]
[1767293520820,0.04830784,88242.0,88234.0,7.328e-05]
[1767293523022,0.04830784,88242.0,88223.0,0.05783227]
[1767293523227,0.04830784,88242.0,88224.0,0.06919214]
[1767293523742,0.04830784,88242.0,88226.0,0.01133452]
[1767293523926,0.04830784,88242.0,88227.0,0.01133439]
[1767293524125,0.04830784,88242.0,88230.0,0.44156374]
[1767293524357,0.04830784,88242.0,88231.0,0.01136]
[1767293525326,0.04830784,88242.0,88231.0,0.01131739]
[1767293527738,0.04830784,88242.0,88232.0,0.01136]
[1767293529859,0.00055,88232.0,88229.0,0.01136]
[1767293530089,0.04830784,88238.0,88229.0,0.01136]
[1767293530824,0.01133234,88243.0,88229.0,0.01136]
[1767293531059,0.08344252,88242.0,88229.0,0.01136]
[1767293531389,0.03513468,88241.0,88229.0,0.01136]
[1767293531522,0.02450069,88240.0,88229.0,0.01136]
[1767293531728,0.02450069,88239.0,88229.0,0.01136]
[1767293531942,0.04830784,88242.0,88229.0,0.01136]
[1767293532134,0.03513231,88241.0,88229.0,0.01136]
[1767293532338,0.02449902,88240.0,88229.0,0.01136]
[1767293532541,0.02449902,88239.0,88229.0,0.01136]
[1767293532741,0.04830784,88242.0,88229.0,0.01136]
[1767293532941,0.0351309,88241.0,88229.0,0.01136]
[1767293533167,0.02449804,88240.0,88229.0,0.01136]
[1767293533374,0.04830784,88242.0,88229.0,0.01136]
[1767293533581,0.03512901,88241.0,88229.0,0.01136]
[1767293533780,0.02449673,88240.0,88229.0,0.01136]
[1767293533979,0.04830784,88242.0,88229.0,0.01136]
[1767293534197,0.02449702,88241.0,88229.0,0.01136]
[1767293535373,0.02449702,88241.0,88229.0,0.01072426]
[1767293539875,0.07280486,88241.0,88229.0,0.01072426]
[1767293540031,0.04830784,88241.0,88229.0,0.01072426]
[1767293552428,0.04830784,88241.0,88229.0,0.0220584]
[1767293554843,0.04830784,88241.0,88229.0,0.01072426]
[1767293555308,0.04830784,88241.0,88229.0,0.0220584]
[1767293556736,0.04830784,88241.0,88229.0,0.01072426]
[1767293557823,0.04830784,88241.0,88230.0,0.03402955]
[1767293566184,0.04830784,88241.0,88230.0,0.04536356]
[1767293568145,0.04830784,88241.0,88230.0,0.4869273]
[1767293568646,0.04830784,88241.0,88230.0,0.4870077]
[1767293569552,0.04830784,88241.0,88230.0,0.47567369]
[1767293574930,0.01136,88246.0,88230.0,0.4870077]
[1767293575116,0.04842256,88244.0,88230.0,0.47567369]
[1767293575322,0.03514212,88243.0,88230.0,0.47567369]
[1767293575529,0.03514212,88242.0,88230.0,0.47567369]
[1767293575704,0.02450588,88241.0,88230.0,0.47567369]
[1767293575884,0.04842256,88244.0,88230.0,0.47567369]
[1767293576091,0.08356466,88243.0,88230.0,0.47567369]
[1767293576302,0.0351421,88242.0,88230.0,0.47567369]
[1767293576658,0.02450587,88241.0,88230.0,0.47567369]
[1767293576792,0.04842256,88243.0,88230.0,0.47567369]
[1767293576980,0.0351421,88242.0,88230.0,0.47567369]
[1767293577180,0.01136,88246.0,88230.0,0.03402955]
[1767293577181,0.02450587,88241.0,88230.0,0.03402955]
[1767293577385,0.04842256,88241.0,88230.0,0.47567369]
[1767293581370,0.01136,88246.0,88231.0,0.01133388]
[1767293581621,0.03514094,88245.0,88230.0,0.45297815]
[1767293581839,0.05978256,88246.0,88230.0,0.45297815]
[1767293581840,0.03514094,88244.0,88230.0,0.45297815]
[1767293582048,0.03514094,88243.0,88231.0,0.04536343]
[1767293582269,0.03514094,88242.0,88232.0,0.01133375]
[1767293582586,0.02450507,88241.0,88234.0,0.06091343]
[1767293582668,0.03063234,88250.0,88237.0,0.01133311]
[1767293582895,0.02450553,88249.0,88240.0,0.44164414]
[1767293583125,0.02450553,88248.0,88240.0,0.44164414]
[1767293583348,0.02450553,88247.0,88238.0,0.44164414]
[1767293583587,0.02450553,88246.0,88238.0,0.44164414]
[1767293583863,0.02450553,88245.0,88238.0,0.44164414]
[1767293584057,0.02450553,88244.0,88238.0,0.44164414]
[1767293584199,0.02450553,88243.0,88238.0,0.49122408]
[1767293584399,0.03063234,88251.0,88238.0,0.04957994]
[1767293584604,0.05513446,88251.0,88240.0,0.44164414]
[1767293584802,0.02450212,88250.0,88240.0,0.44164414]
[1767293585006,0.02450212,88249.0,88240.0,0.44164414]
[1767293585263,0.02450212,88248.0,88240.0,0.44164414]
[1767293585458,0.02450212,88247.0,88240.0,0.44164414]
[1767293585662,0.02450212,88246.0,88240.0,0.44164414]
[1767293585819,0.02450212,88245.0,88240.0,0.44164414]
[1767293586023,0.02450212,88244.0,88240.0,0.44164414]
[1767293586224,0.02450212,88243.0,88240.0,0.44164414]
[1767293586440,0.04842256,88251.0,88240.0,0.44164414]
[1767293586651,0.02450088,88250.0,88240.0,0.44164414]
[1767293586851,0.02450088,88250.0,88236.0,0.04538569]
[1767293587052,0.04897256,88240.0,88237.0,0.01136]
[1767293587409,0.04842256,88240.0,88237.0,0.01136]
[1767293588229,0.04842256,88240.0,88237.0,0.01081]
[1767293589850,0.05975451,88246.0,88234.0,0.03402716]
[1767293590055,0.04842256,88244.0,88234.0,0.03402716]
[1767293590275,0.0244998,88243.0,88234.0,0.03402716]
[1767293599123,0.04842256,88242.0,88234.0,0.03402716]
[1767293604543,0.04842256,88242.0,88226.0,0.00052495]
[1767293604701,0.0491346,88237.0,88226.0,0.00052495]
[1767293605487,0.0604946,88237.0,88226.0,0.00052495]
[1767293611470,0.06045202,88237.0,88226.0,0.00052495]
[1767293611671,0.06045202,88237.0,88227.0,0.44164414]
[1767293613106,0.01136,88240.0,88228.0,0.04563465]
[1767293613271,0.01136,88240.0,88230.0,0.44164414]
[1767293615242,0.01136,88240.0,88228.0,0.04563465]
[1767293615243,0.0113177,88240.0,88228.0,0.04563465]
[1767293615401,0.0113177,88240.0,88230.0,0.44164414]
[1767293622273,0.0113177,88240.0,88230.0,0.4407842]
[1767293623249,0.0113177,88240.0,88230.0,0.44164414]
[1767293626824,0.0113177,88240.0,88230.0,0.48727879]
[1767293628945,0.02265042,88240.0,88230.0,0.44164202]
[1767293629725,0.01133298,88238.0,88230.0,0.44164202]
[1767293629931,0.01133285,88239.0,88226.0,0.00052495]
[1767293630995,0.02265042,88240.0,88226.0,0.00052495]
[1767293631177,0.0113177,88240.0,88226.0,0.00052495]
[1767293631984,0.02265042,88240.0,88226.0,0.00052495]
[1767293632168,0.0113177,88240.0,88226.0,0.00052495]
[1767293634195,0.0113177,88240.0,88230.0,0.44164202]
[1767293634397,0.0113177,88240.0,88226.0,0.00052495]
[1767293634657,0.02265042,88240.0,88230.0,0.44164202]
[1767293634856,0.0113177,88240.0,88230.0,0.44164202]
[1767293635035,0.0491346,88244.0,88230.0,0.44164202]
[1767293635036,0.0113326,88245.0,88231.0,0.04776246]
[1767293635242,0.03512886,88244.0,88231.0,0.04776246]
[1767293635525,0.03512886,88243.0,88231.0,0.04776246]
[1767293635669,0.02269208,88245.0,88231.0,0.04776246]
[1767293635670,0.03512886,88242.0,88231.0,0.04776246]
[1767293635882,0.02449667,88241.0,88231.0,0.04776246]
[1767293636075,0.02269208,88245.0,88231.0,0.04776246]
[1767293636272,0.03512892,88244.0,88231.0,0.04776246]
[1767293636455,0.03512892,88243.0,88231.0,0.04776246]
[1767293636661,0.02449662,88242.0,88231.0,0.04776246]
[1767293636900,0.02449662,88241.0,88231.0,0.04776246]
[1767293637095,0.01136,88245.0,88231.0,0.04776246]
[1767293637302,0.03512807,88244.0,88231.0,0.04776246]
[1767293637479,0.03512807,88243.0,88231.0,0.04776246]
[1767293637692,0.02449607,88242.0,88231.0,0.04776246]
[1767293637994,0.02449607,88241.0,88231.0,0.04776246]
[1767293638196,0.01136,88245.0,88231.0,0.04776246]
[1767293638408,0.03512838,88244.0,88231.0,0.04776246]
[1767293638605,0.03512838,88243.0,88231.0,0.04776246]
[1767293638776,0.0244963,88242.0,88231.0,0.04776246]
[1767293638984,0.0244963,88241.0,88231.0,0.04776246]
[1767293639260,0.01136,88245.0,88231.0,0.04776246]
[1767293639435,0.03512864,88244.0,88231.0,0.04776246]
[1767293639641,0.03512864,88243.0,88231.0,0.04776246]
[1767293639840,0.02449649,88242.0,88231.0,0.04776246]
[1767293640063,0.02449649,88241.0,88231.0,0.04776246]
[1767293640295,0.01136,88245.0,88231.0,0.04776246]
[1767293640470,0.03512946,88244.0,88231.0,0.04776246]
[1767293640652,0.03512946,88243.0,88231.0,0.04776246]
[1767293641026,0.02449707,88242.0,88231.0,0.04776246]
[1767293641192,0.02449707,88241.0,88231.0,0.04776246]
[1767293641397,0.01133221,88244.0,88231.0,0.04776246]
[1767293641620,0.03512614,88243.0,88231.0,0.04776246]
[1767293641775,0.02449469,88242.0,88231.0,0.04776246]
[1767293641984,0.02449469,88241.0,88231.0,0.04776246]
[1767293642180,0.01136,88245.0,88231.0,0.04776246]
[1767293642511,0.035124,88244.0,88231.0,0.04776246]
[1767293642709,0.035124,88243.0,88231.0,0.04776246]
[1767293642954,0.02449326,88242.0,88231.0,0.04776246]
[1767293643125,0.02449326,88241.0,88231.0,0.04776246]
[1767293643336,0.01136,88245.0,88231.0,0.04776246]
[1767293643493,0.03512428,88244.0,88231.0,0.04776246]
[1767293643710,0.03512428,88243.0,88231.0,0.04776246]
[1767293643983,0.02449351,88242.0,88231.0,0.04776246]
[1767293644115,0.02449351,88241.0,88231.0,0.04776246]
[1767293644344,0.01136,88245.0,88231.0,0.04776246]
[1767293644541,0.0351242,88244.0,88231.0,0.04776246]
[1767293644867,0.0351242,88243.0,88231.0,0.04776246]
[1767293645062,0.02449345,88242.0,88231.0,0.04776246]
[1767293645246,0.02449345,88241.0,88231.0,0.04776246]
[1767293645448,0.01136,88245.0,88231.0,0.04776246]
[1767293645650,0.03512403,88244.0,88231.0,0.04776246]
[1767293645946,0.03512403,88243.0,88231.0,0.04776246]
[1767293646307,0.02449334,88242.0,88231.0,0.04776246]
[1767293646461,0.02449334,88241.0,88231.0,0.04776246]
[1767293646664,0.01136,88245.0,88231.0,0.04776246]
[1767293646978,0.03512376,88244.0,88231.0,0.04776246]
[1767293647177,0.03512376,88243.0,88231.0,0.04776246]
[1767293647362,0.02449315,88242.0,88231.0,0.04776246]
[1767293647562,0.02449315,88241.0,88231.0,0.04776246]
[1767293647784,0.01136,88245.0,88231.0,0.04776246]
[1767293647990,0.03512349,88244.0,88231.0,0.04776246]
[1767293648194,0.03512349,88243.0,88231.0,0.04776246]
[1767293648390,0.02449297,88242.0,88231.0,0.04776246]
[1767293648720,0.02449297,88241.0,88231.0,0.04776246]
[1767293648924,0.02269208,88245.0,88231.0,0.04776246]
[1767293649123,0.03512329,88244.0,88231.0,0.04776246]
[1767293649413,0.03512329,88243.0,88231.0,0.04776246]
[1767293649570,0.02449283,88242.0,88231.0,0.04776246]
[1767293649770,0.02449283,88241.0,88231.0,0.04776246]
[1767293649991,0.02269208,88245.0,88231.0,0.04776246]
[1767293650194,0.03512308,88244.0,88231.0,0.04776246]
[1767293650391,0.03512308,88243.0,88231.0,0.04776246]
[1767293650619,0.02449269,88242.0,88231.0,0.04776246]
[1767293650822,0.02449269,88241.0,88231.0,0.04776246]
[1767293651022,0.02269208,88245.0,88231.0,0.04776246]
[1767293651227,0.000549,88231.0,88230.0,0.01136]
[1767293651435,0.000549,88231.0,88226.0,0.00052495]
[1767293651603,0.000549,88231.0,88228.0,0.01136]
[1767293651798,0.04852213,88237.0,88228.0,0.01136]
[1767293659984,0.04852213,88227.0,88215.0,1.35e-06]
[1767293663068,0.02269427,88228.0,88215.0,1.35e-06]
[1767293664479,0.01136,88228.0,88215.0,1.35e-06]
[1767293666874,0.01136,88228.0,88215.0,0.04571194]
[1767293667071,0.01136,88228.0,88218.0,0.44164202]
[1767293674352,0.01133414,88229.0,88218.0,0.44164202]
[1767293674539,0.02269414,88229.0,88215.0,0.04571194]
[1767293674750,0.01133452,88226.0,88216.0,0.01136]
[1767293674951,0.01133452,88226.0,88216.0,0.01141597]
[1767293675144,0.01133465,88225.0,88216.0,0.01141597]
[1767293675328,0.05893169,88225.0,88216.0,0.01141597]
[1767293675533,0.05893169,88225.0,88206.0,0.01133709]
[1767293675534,0.04809107,88216.0,88204.0,0.0001479]
[1767293675730,0.04759704,88205.0,88204.0,1e-08]
[1767293677667,0.05893426,88205.0,88190.0,0.46950052]
[1767293677880,0.04759704,88205.0,88190.0,0.4695485]
[1767293678474,0.04759704,88205.0,88191.0,0.04571059]
[1767293679240,0.05893426,88205.0,88191.0,0.04571059]
[1767293679657,0.04759704,88205.0,88191.0,0.04571059]
[1767293682218,0.05893426,88205.0,88191.0,0.04571059]
[1767293682373,0.01133748,88203.0,88191.0,0.04571059]
[1767293682972,0.01133735,88204.0,88191.0,0.04571059]
[1767293683307,0.01133761,88202.0,88190.0,4.798e-05]
[1767293683631,0.01133812,88198.0,88190.0,4.798e-05]
[1767293684122,0.01133799,88199.0,88190.0,4.798e-05]
[1767293686064,0.04759704,88198.0,88190.0,4.798e-05]
[1767293689071,0.05893516,88198.0,88190.0,4.798e-05]
[1767293689516,0.04759704,88198.0,88190.0,4.798e-05]
[1767293691054,0.05893516,88198.0,88190.0,4.798e-05]
[1767293691264,0.04759704,88198.0,88190.0,4.798e-05]
[1767293694778,0.05893516,88198.0,88190.0,4.798e-05]
[1767293695463,0.04759704,88198.0,88190.0,4.798e-05]
[1767293698215,0.04754204,88198.0,88190.0,4.798e-05]
[1767293698391,0.01136,88200.0,88190.0,4.798e-05]
[1767293698556,0.01136,88200.0,88190.0,0.44218168]
[1767293698975,0.01136,88200.0,88190.0,4.798e-05]
[1767293699173,0.01136,88200.0,88190.0,0.44218168]
[1767293701142,0.04940649,88203.0,88190.0,0.44218168]
[1767293701347,0.01136,88206.0,88203.0,0.00055]
[1767293701542,0.02269709,88206.0,88196.0,0.4421337]
[1767293701747,0.01136,88206.0,88196.0,0.4421337]
[1767293702203,0.02269709,88206.0,88196.0,0.4421337]
[1767293702363,0.01133722,88205.0,88191.0,0.04795032]
[1767293702560,0.01136,88206.0,88191.0,0.04795032]
[1767293702767,0.01136,88206.0,88196.0,0.4421337]
[1767293703302,0.02269709,88206.0,88196.0,0.4421337]
[1767293703544,0.01136,88206.0,88196.0,0.4421337]
[1767293704263,0.02269709,88206.0,88196.0,0.4421337]
[1767293705291,0.02445225,88205.0,88196.0,0.4421337]
[1767293710091,0.02445225,88204.0,88196.0,0.4421337]
[1767293710297,0.02445225,88204.0,88194.0,0.4421337]
[1767293712101,0.02390225,88204.0,88194.0,0.4421337]
[1767293712312,0.01136,88205.0,88194.0,0.4421337]
[1767293712927,0.06076649,88210.0,88194.0,0.4421337]
[1767293713153,0.06002718,88209.0,88200.0,0.4421337]
[1767293713362,0.01136,88209.0,88200.0,0.4421337]
[1767293713576,0.01136,88210.0,88200.0,0.4421337]
[1767293713778,0.01062152,88209.0,88200.0,0.4421337]
[1767293713992,0.03404245,88212.0,88200.0,0.4421337]
[1767293714177,0.04940649,88215.0,88200.0,0.4421337]
[1767293714178,0.01136,88210.0,88201.0,0.04795032]
[1767293714429,0.01062151,88209.0,88201.0,0.04795032]
[1767293714644,0.01136,88210.0,88200.0,0.4421337]
[1767293714814,0.01136,88210.0,88197.0,0.01133825]
[1767293715076,0.01136,88210.0,88200.0,0.4421337]
[1767293721006,0.000549,88200.0,88195.0,0.01136]
[1767293721193,0.01133735,88204.0,88195.0,0.01136]
[1767293722223,0.01133735,88204.0,88190.0,0.44218168]
[1767293722437,0.01133748,88203.0,88194.0,0.01136]
[1767293722663,0.01133748,88203.0,88191.0,0.04795032]
[1767293722664,0.01133735,88204.0,88191.0,0.04795032]
[1767293722862,0.01133748,88203.0,88194.0,0.01136]
[1767293723448,0.01133709,88206.0,88194.0,0.01136]
[1767293723742,0.01133696,88207.0,88194.0,0.01136]
[1767293723939,0.01133684,88208.0,88194.0,0.01136]
[1767293724172,0.02447374,88207.0,88194.0,0.01136]
[1767293725181,0.02447374,88207.0,88197.0,0.4421337]
[1767293725351,0.01133684,88208.0,88197.0,0.4421337]
[1767293725723,0.02447529,88207.0,88198.0,0.4421337]
[1767293725872,0.02447529,88207.0,88191.0,0.04795032]
[1767293725873,0.000549,88198.0,88193.0,0.01136]
[1767293726325,0.01133773,88201.0,88193.0,0.01136]
[1767293726488,0.01133761,88202.0,88193.0,0.01136]
[1767293726690,0.00972999,88202.0,88193.0,0.01136]
[1767293727033,0.01133786,88200.0,88193.0,0.01136]
[1767293727236,0.01133773,88201.0,88193.0,0.01136]
[1767293727812,0.0680272,88200.0,88190.0,0.44218168]
[1767293727990,0.000549,88193.0,88192.0,0.01136]
[1767293728526,0.01133786,88200.0,88192.0,0.01136]
[1767293729094,0.01133773,88201.0,88192.0,0.01136]
[1767293730842,0.01133786,88200.0,88192.0,0.01136]
[1767293731453,0.01133773,88201.0,88192.0,0.01136]
[1767293731793,0.01133748,88203.0,88192.0,0.01136]
[1767293731993,0.01133735,88204.0,88192.0,0.01136]
[1767293732204,0.01133748,88203.0,88192.0,0.01136]
[1767293732407,0.01133735,88204.0,88192.0,0.01136]
[1767293734662,0.01133748,88203.0,88192.0,0.01136]
[1767293734881,0.01133735,88204.0,88192.0,0.01136]
[1767293736887,0.01133748,88203.0,88192.0,0.01136]
[1767293737032,0.01133773,88201.0,88192.0,0.01136]
[1767293737885,0.01133786,88200.0,88192.0,0.01136]
[1767293738083,0.01133773,88201.0,88192.0,0.01136]
[1767293738495,0.06802548,88203.0,88192.0,0.01136]
[1767293738496,0.01133748,88203.0,88192.0,0.01136]
[1767293738636,0.01133735,88204.0,88192.0,0.01136]
[1767293738837,0.05797073,88206.0,88192.0,0.01136]
[1767293739839,0.01133722,88205.0,88192.0,0.0115015]
[1767293742253,0.01133735,88204.0,88192.0,0.0115015]
[1767293744045,0.01133722,88205.0,88192.0,0.0115015]
[1767293744356,0.01133735,88204.0,88192.0,0.0115015]
[1767293746590,0.01133761,88202.0,88192.0,0.0115015]
[1767293746916,0.01133773,88201.0,88192.0,0.0115015]
[1767293747146,0.01133761,88202.0,88192.0,0.0115015]
[1767293748287,0.01133722,88205.0,88192.0,0.0115015]
[1767293749817,0.04663364,88206.0,88192.0,0.0115015]
[1767293750141,0.0358252,88205.0,88192.0,0.0115015]
[1767293750321,0.01133735,88204.0,88192.0,0.0115015]
[1767293750730,0.01133722,88205.0,88192.0,0.0115015]
[1767293752803,0.01133735,88204.0,88192.0,0.0115015]
[1767293753125,0.01133722,88205.0,88192.0,0.0115015]
[1767293753573,0.01133735,88204.0,88192.0,0.0115015]
[1767293756684,0.01133722,88205.0,88192.0,0.0115015]
[1767293757299,0.01133735,88204.0,88192.0,0.0115015]
[1767293758386,0.01133722,88205.0,88192.0,0.0115015]
[1767293758587,0.04663364,88206.0,88192.0,0.0115015]
[1767293758818,0.02448975,88205.0,88192.0,0.0115015]
[1767293760944,0.03582697,88205.0,88192.0,0.0115015]
[1767293761234,0.01133722,88205.0,88192.0,0.0115015]
[1767293761579,0.01133735,88204.0,88192.0,0.0115015]
[1767293761824,0.01133722,88205.0,88192.0,0.0115015]
[1767293763297,0.04663364,88206.0,88192.0,0.0115015]
[1767293763650,0.02449126,88205.0,88192.0,0.0115015]
[1767293765052,0.02449126,88205.0,88193.0,0.01136]
[1767293766159,0.02449126,88205.0,88193.0,0.0115015]
[1767293771274,0.03582848,88205.0,88193.0,0.0115015]
[1767293771565,0.01133722,88205.0,88193.0,0.0115015]
[1767293774111,0.04663364,88206.0,88193.0,0.0115015]
[1767293774316,0.02448685,88205.0,88193.0,0.0115015]
[1767293774518,0.03582407,88205.0,88193.0,0.0115015]
[1767293774725,0.05797073,88206.0,88193.0,0.0115015]
[1767293774918,0.02448683,88205.0,88193.0,0.0115015]
[1767293775118,0.02448683,88205.0,88193.0,0.0596745]
[1767293775346,0.01133696,88207.0,88193.0,0.0596745]
[1767293775654,0.03511485,88206.0,88193.0,0.0596745]
[1767293775877,0.02448687,88205.0,88193.0,0.0596745]
[1767293776205,0.01133696,88207.0,88193.0,0.0596745]
[1767293776407,0.04645215,88206.0,88193.0,0.0596745]
[1767293776722,0.02448702,88205.0,88193.0,0.0596745]
[1767293777317,0.01133696,88207.0,88193.0,0.0596745]
[1767293777517,0.03511483,88206.0,88193.0,0.0596745]
[1767293777714,0.02448686,88205.0,88193.0,0.0596745]
[1767293777914,0.01133709,88206.0,88193.0,0.0596745]
[1767293778218,0.02448685,88205.0,88193.0,0.0596745]
[1767293779291,0.01133709,88206.0,88193.0,0.0596745]
[1767293779491,0.01133696,88207.0,88193.0,0.0596745]
[1767293779671,0.01133684,88208.0,88193.0,0.0596745]
[1767293779867,0.02448726,88207.0,88193.0,0.0596745]
[1767293781658,0.03582422,88207.0,88193.0,0.0596745]
[1767293781903,0.02448726,88206.0,88193.0,0.0596745]
[1767293782315,0.02448726,88205.0,88193.0,0.0596745]
[1767293782478,0.01133696,88207.0,88193.0,0.0596745]
[1767293782681,0.02448383,88206.0,88193.0,0.0596745]
[1767293784434,0.02448383,88205.0,88193.0,0.0596745]
[1767293784601,0.01133684,88208.0,88193.0,0.0596745]
[1767293784802,0.0351105,88207.0,88193.0,0.0596745]
[1767293785016,0.02448384,88206.0,88193.0,0.0596745]
[1767293785224,0.02448384,88205.0,88193.0,0.0596745]
[1767293785436,0.01133671,88209.0,88193.0,0.0596745]
[1767293785635,0.04644737,88208.0,88193.0,0.0596745]
[1767293785814,0.04644749,88207.0,88193.0,0.0596745]
[1767293786018,0.02448386,88206.0,88193.0,0.0596745]
[1767293786400,0.02448386,88205.0,88193.0,0.0596745]
[1767293786600,0.01133684,88208.0,88193.0,0.0596745]
[1767293786854,0.0351105,88207.0,88193.0,0.0596745]
[1767293787069,0.02448384,88206.0,88193.0,0.0596745]
[1767293787279,0.02448384,88205.0,88193.0,0.0596745]
[1767293787571,0.01133684,88208.0,88193.0,0.0596745]
[1767293787774,0.03511052,88207.0,88193.0,0.0596745]
[1767293787971,0.02448385,88206.0,88193.0,0.0596745]
[1767293788121,0.02448385,88205.0,88193.0,0.0596745]
[1767293788321,0.01133684,88208.0,88193.0,0.0596745]
[1767293788562,0.03511056,88207.0,88193.0,0.0596745]
[1767293788770,0.02448388,88206.0,88193.0,0.0596745]
[1767293788975,0.02448386,88205.0,88193.0,0.0596745]
[1767293789186,0.01133684,88208.0,88193.0,0.0596745]
[1767293789409,0.03511053,88207.0,88193.0,0.0596745]
[1767293789581,0.02448386,88206.0,88193.0,0.0596745]
[1767293789752,0.01133684,88208.0,88193.0,0.0596745]
[1767293789960,0.03511055,88207.0,88193.0,0.0596745]
[1767293790160,0.02448387,88206.0,88193.0,0.0596745]
[1767293790381,0.02448387,88205.0,88193.0,0.0596745]
[1767293790595,0.01136,88210.0,88193.0,0.0596745]
[1767293790842,0.03511066,88209.0,88193.0,0.0596745]
[1767293790997,0.03511066,88208.0,88193.0,0.0596745]
[1767293791195,0.03511066,88207.0,88193.0,0.0596745]
[1767293791406,0.02448395,88206.0,88193.0,0.0596745]
[1767293791608,0.07268012,88210.0,88193.0,0.0596745]
[1767293791808,0.03511068,88209.0,88193.0,0.07101326]
[1767293792060,0.03511068,88208.0,88193.0,0.07101326]
[1767293792372,0.03511068,88207.0,88193.0,0.07101326]
[1767293792561,0.02448396,88206.0,88193.0,0.0596745]
[1767293792783,0.06134354,88210.0,88193.0,0.0596745]
[1767293792959,0.03511068,88209.0,88193.0,0.0596745]
[1767293793192,0.03511068,88208.0,88193.0,0.0596745]
[1767293793395,0.03511068,88207.0,88193.0,0.0596745]
[1767293793526,0.02448396,88206.0,88193.0,0.0596745]
[1767293793705,0.07268012,88210.0,88193.0,0.0596745]
[1767293793906,0.0351107,88209.0,88193.0,0.0596745]
[1767293794120,0.0351107,88208.0,88193.0,0.0596745]
[1767293794325,0.0351107,88207.0,88193.0,0.0596745]
[1767293794550,0.02448398,88206.0,88193.0,0.0596745]
[1767293794758,0.07268012,88210.0,88193.0,0.0596745]
[1767293794957,0.03511072,88209.0,88193.0,0.0596745]
[1767293795171,0.03511072,88208.0,88193.0,0.0596745]
[1767293795376,0.03511072,88207.0,88193.0,0.0596745]
[1767293795594,0.02448399,88206.0,88193.0,0.0596745]
[1767293795801,0.07268012,88210.0,88193.0,0.0596745]
[1767293796003,0.03511072,88209.0,88193.0,0.0596745]
[1767293796233,0.03511072,88208.0,88193.0,0.0596745]
[1767293796445,0.07268012,88210.0,88193.0,0.0596745]
[1767293796446,0.03511072,88207.0,88193.0,0.0596745]
[1767293796697,0.02448399,88206.0,88193.0,0.0596745]
[1767293796904,0.06134354,88210.0,88193.0,0.0596745]
[1767293797091,0.03511075,88209.0,88193.0,0.0596745]
[1767293797426,0.03511075,88208.0,88193.0,0.0596745]
[1767293797644,0.03511075,88207.0,88193.0,0.0596745]
[1767293797857,0.02448401,88206.0,88193.0,0.0596745]
[1767293798039,0.01133671,88209.0,88193.0,0.0596745]
[1767293798203,0.03511082,88208.0,88193.0,0.0596745]
[1767293798411,0.03511082,88207.0,88193.0,0.0596745]
[1767293798601,0.02448406,88206.0,88193.0,0.0596745]
[1767293798940,0.07268012,88210.0,88193.0,0.0596745]
[1767293799146,0.03511082,88209.0,88193.0,0.0596745]
[1767293799307,0.03511082,88208.0,88193.0,0.0596745]
[1767293799656,0.06134354,88210.0,88193.0,0.0596745]
[1767293799657,0.03511082,88207.0,88193.0,0.0596745]
[1767293799820,0.02448406,88206.0,88193.0,0.0596745]
[1767293800023,0.06134354,88210.0,88193.0,0.0596745]
[1767293800242,0.0351109,88209.0,88193.0,0.0596745]
[1767293800556,0.0351109,88208.0,88193.0,0.0596745]
[1767293800708,0.0351109,88207.0,88193.0,0.0596745]
[1767293800908,0.02448411,88206.0,88193.0,0.0596745]
[1767293801270,0.02448411,88205.0,88193.0,0.0596745]
[1767293801445,0.06134354,88210.0,88193.0,0.0596745]
[1767293801625,0.03511095,88209.0,88193.0,0.07101326]
[1767293801850,0.03511095,88208.0,88193.0,0.07101326]
[1767293802047,0.03511095,88207.0,88193.0,0.0596745]
[1767293802245,0.02448415,88206.0,88193.0,0.0596745]
[1767293802453,0.02448415,88205.0,88194.0,0.01133863]
[1767293802646,0.06134354,88210.0,88194.0,0.01133863]
[1767293802838,0.03511142,88209.0,88194.0,0.01133863]
[1767293803046,0.03511142,88208.0,88194.0,0.01133863]
[1767293803254,0.02448448,88207.0,88194.0,0.01133863]
[1767293803451,0.06134354,88210.0,88193.0,0.0001415]
[1767293803708,0.04998354,88208.0,88194.0,0.01136]
[1767293803922,0.04998354,88206.0,88194.0,0.01136]
[1767293804057,0.0244838,88205.0,88194.0,0.01136]
[1767293804849,0.02269658,88210.0,88195.0,0.04684705]
[1767293804850,0.01136,88210.0,88195.0,0.04684705]
[1767293805051,0.0351105,88209.0,88195.0,0.04684705]
[1767293805263,0.0351105,88208.0,88195.0,0.04684705]
[1767293805480,0.02448372,88207.0,88195.0,0.04684705]
[1767293805684,0.02448372,88206.0,88195.0,0.04684705]
[1767293805885,0.01136,88210.0,88195.0,0.04684705]
[1767293806107,0.0351101,88209.0,88195.0,0.04684705]
[1767293806351,0.0351101,88208.0,88195.0,0.04684705]
[1767293806623,0.02448356,88207.0,88195.0,0.04684705]
[1767293806859,0.01136,88210.0,88195.0,0.04684705]
[1767293807009,0.03510991,88209.0,88195.0,0.04684705]
[1767293807189,0.03510991,88208.0,88195.0,0.04684705]